fUST/lending_fUST_20250713
["ID","MTS","AMOUNT","RATE_DAILY","PERIOD"]
[371568938,1752357068868,-151.0,0.00022466,7]
[371568939,1752357068878,-264.189425,0.00022466,7]
[371568940,1752357068887,-264.189425,0.00022466,7]
[371568941,1752357068896,-151.0,0.00022466,7]
[371568942,1752357068905,-151.0,0.00022466,7]
[371568943,1752357068915,-151.0,0.00022466,7]
[371568944,1752357068924,-1262.657327,0.00022466,7]
[371568945,1752357068933,-1262.657327,0.00022466,7]
[371568946,1752357068943,-479.491969,0.00022466,7]
[371568947,1752357068953,-479.491969,0.00022466,7]
[371568948,1752357068963,-3924.06288853,0.00022486,7]
[371568949,1752357068973,-221.648769,0.0002249,7]
[371568950,1752357068982,-16603.36481054,0.000225,2]
[371568951,1752357068992,-3000.0,0.000225,2]
[371568952,1752357069002,-151.0,0.000225,7]
[371568953,1752357069011,-151.0,0.000225,7]
[371568954,1752357069020,-151.0,0.000225,7]
[371568955,1752357069030,-151.0,0.000225,7]
[371568956,1752357069039,-159.756947,0.000225,7]
[371568957,1752357069049,-151.0,0.000225,7]
[371568958,1752357069058,-151.0,0.000225,7]
[371568959,1752357069067,-151.0,0.000225,7]
[371568960,1752357069076,-151.0,0.000225,7]
[371568961,1752357069086,-151.0,0.000225,7]
[371568962,1752357069095,-151.0,0.000225,7]
[371568963,1752357069105,-1155.207518,0.000225,7]
[371568964,1752357069114,-1155.207518,0.000225,7]
[371568965,1752357069124,-151.0,0.000225,7]
[371568966,1752357069134,-160.0,0.000225,7]
[371568967,1752357069143,-214.25614385,0.000225,7]
[371568968,1752357069153,-525.30943792,0.000225,7]
[371568969,1752357069163,-3000.0,0.0002251,2]
[371568970,1752357069172,-5502.71686863,0.0002251,2]
[371568971,1752357069182,-3000.0,0.0002252,2]
[371568972,1752357069192,-3000.0,0.0002253,2]
[371568973,1752357069201,-3000.0,0.0002254,2]
[371568974,1752357069213,-237.432285,0.0002254,7]
[371568975,1752357069223,-151.0,0.0002254,7]
[371568976,1752357069232,-151.0,0.0002254,7]
[371568977,1752357069241,-300.586308,0.0002254,2]
[371568978,1752357069251,-300.586308,0.0002254,2]
[371568979,1752357069260,-151.0,0.0002254,7]
[371568980,1752357069270,-765.143976,0.0002254,7]
[371568981,1752357069279,-765.143978,0.0002254,7]
[371568982,1752357069289,-3000.0,0.0002255,2]
[371568983,1752357069300,-3000.0,0.0002256,2]
[371568984,1752357069309,-3000.0,0.0002257,2]
[371568985,1752357069319,-151.0,0.0002257,7]
[371568986,1752357069328,-249.37626,0.0002257,7]
[371568987,1752357069337,-249.376258,0.0002257,7]
[371568988,1752357069347,-1033.0,0.00022576,2]
[371568989,1752357069356,-3000.0,0.0002258,2]
[371568990,1752357069365,-3000.0,0.0002259,2]
[371568991,1752357069375,-3000.0,0.000226,2]
[371568992,1752357069385,-189.78124,0.000226,7]
[371568993,1752357069394,-189.78124,0.000226,7]
[371568994,1752357069403,-800.0,0.00022602,2]
[371568995,1752357069412,-754.681604,0.00022603,2]
[371568996,1752357069422,-3000.0,0.0002261,2]
[371568997,1752357069431,-177.0,0.00022612,2]
[371568998,1752357069440,-3000.0,0.0002262,2]
[371568999,1752357069449,-3000.0,0.0002263,2]
[371569000,1752357069459,-151.0,0.0002263,7]
[371569001,1752357069468,-151.0,0.0002263,7]
[371569002,1752357069478,-151.0,0.0002263,7]
[371569003,1752357069488,-151.0,0.0002263,7]
[371569004,1752357069497,-208.720933,0.0002263,7]
[371569005,1752357069507,-208.720933,0.0002263,7]
[371569006,1752357069516,-151.0,0.0002263,7]
[371569007,1752357069525,-158.938451,0.0002263,7]
[371569008,1752357069535,-158.938451,0.0002263,7]
[371569009,1752357069544,-1074.333574,0.0002263,7]
[371569010,1752357069554,-1074.333574,0.0002263,7]
[371569011,1752357069563,-576.333126,0.0002263,2]
[371569012,1752357069573,-3000.0,0.0002264,2]
[371569013,1752357069582,-151.0,0.0002264,7]
[371569014,1752357069592,-151.0,0.0002264,7]
[371569015,1752357069602,-151.0,0.0002264,7]
[371569016,1752357069611,-225.00448196,0.00022648,2]
[371569017,1752357069621,-3000.0,0.0002265,2]
[371569018,1752357069630,-3000.0,0.0002266,2]
[371569019,1752357069639,-3000.0,0.0002267,2]
[371569020,1752357069649,-3000.0,0.0002268,2]
[371569021,1752357069658,-1754.130132,0.0002268,5]
[371569022,1752357069668,-221.648769,0.00022688,3]
[371569023,1752357069678,-3000.0,0.0002269,2]
[371569024,1752357069687,-3000.0,0.000227,2]
[371569025,1752357069696,-1000.0,0.000227,5]
[371569026,1752357069706,-151.0,0.000227,7]
[371569027,1752357069715,-368.105322,0.000227,7]
[371569028,1752357069724,-368.105322,0.000227,7]
[371569029,1752357069733,-3000.0,0.0002271,2]
[371569030,1752357069743,-3000.0,0.0002272,2]
[371569031,1752357069752,-1000.0,0.0002272,5]
[371569032,1752357069847,-3000.0,0.0002273,2]
[371569033,1752357069857,-1033.0,0.00022732,2]
[371569034,1752357069867,-151.0,0.00022739,7]
[371569035,1752357069877,-151.0,0.00022739,7]
[371569036,1752357069886,-151.0,0.00022739,7]
[371569037,1752357069896,-264.189425,0.00022739,7]
[371569038,1752357069906,-264.189425,0.00022739,7]
[371569039,1752357069915,-151.0,0.00022739,7]
[371569040,1752357069925,-151.0,0.00022739,7]
[371569041,1752357069934,-151.0,0.00022739,7]
[371569042,1752357069945,-598.66,0.00022739,2]
[371569043,1752357069955,-1262.657327,0.00022739,7]
[371569044,1752357069964,-1262.657327,0.00022739,7]
[371569045,1752357069973,-1833.68353587,0.00022739,2]
[371569046,1752357069983,-1796.25262603,0.00022739,2]
[371569047,1752357069993,-3698.86763047,0.00022739,2]
[371569048,1752357070002,-726.16,0.00022739,2]
[371569049,1752357070012,-2275.10533477,0.00022739,2]
[371569050,1752357070022,-699.45948719,0.00022739,2]
[371569051,1752357070031,-995.82,0.00022739,2]
[371569052,1752357070042,-648.96,0.00022739,2]
[371569053,1752357070052,-647.7,0.00022739,2]
[371569054,1752357070062,-1247.94286691,0.00022739,2]
[371569055,1752357070071,-813.38,0.00022739,2]
[371569056,1752357070081,-561.43,0.00022739,2]
[371569057,1752357070091,-460.49207366,0.00022739,2]
[371569058,1752357070101,-470.32,0.00022739,2]
[371569059,1752357070111,-3681.4154439,0.00022739,2]
[371569060,1752357070121,-3587.41909771,0.00022739,2]
[371569061,1752357070130,-479.88,0.00022739,2]
[371569062,1752357070139,-2620.94558285,0.00022739,2]
[371569063,1752357070148,-666.78,0.00022739,2]
[371569064,1752357070158,-513.45,0.00022739,2]
[371569065,1752357070167,-2216.82455447,0.00022739,2]
[371569066,1752357070177,-518.58,0.00022739,2]
[371569067,1752357070186,-479.491969,0.00022739,7]
[371569068,1752357070196,-549.07,0.00022739,2]
[371569069,1752357070206,-479.491969,0.00022739,7]
[371569070,1752357070221,-605.13,0.00022739,2]
[371569071,1752357070231,-3142.24785708,0.00022739,2]
[371569072,1752357070240,-5920.44368131,0.00022739,2]
[371569073,1752357070250,-875.60518306,0.00022739,2]
[371569074,1752357070263,-556.33,0.00022739,2]
[371569075,1752357070272,-5429.91072335,0.00022739,2]
[371569076,1752357070282,-634.32,0.00022739,2]
[371569077,1752357070292,-3000.0,0.0002274,2]
[371569078,1752357070303,-1000.0,0.0002274,5]
[371569079,1752357070312,-3000.0,0.0002275,2]
[371569080,1752357070321,-151.0,0.0002275,7]
[371569081,1752357070331,-151.0,0.00022751,7]
[371569082,1752357070340,-500.581,0.00022751,2]
[371569083,1752357070349,-2200.0,0.00022751,2]
[371569084,1752357070359,-3000.0,0.0002276,2]
[371569085,1752357070368,-1000.0,0.0002276,5]
[371569086,1752357070378,-1038.70509216,0.0002277,2]
[371569087,1752357070388,-3459.966667,0.0002277,2]
[371569088,1752357070398,-151.0,0.0002278,7]
[371569089,1752357070407,-151.0,0.0002278,7]
[371569090,1752357070416,-151.0,0.0002278,7]
[371569091,1752357070425,-151.0,0.0002278,7]
[371569092,1752357070434,-222.599375,0.0002278,7]
[371569093,1752357070443,-1000.0,0.0002278,5]
[371569094,1752357070452,-3924.06288853,0.00022797,7]
[371569095,1752357070462,-151.0,0.00022799,6]
[371569096,1752357070472,-594.07,0.000228,7]
[371569097,1752357070481,-1000.0,0.000228,5]
[371569098,1752357070491,-1000.0,0.0002282,5]
[371569099,1752357070500,-1000.0,0.0002284,5]
[371569100,1752357070510,-221.648769,0.0002284,10]
[371569101,1752357070519,-1000.0,0.0002286,5]
[371569102,1752357070529,-151.0,0.00022865,7]
[371569103,1752357070538,-151.997038,0.00022865,7]
[371569104,1752357070548,-151.0,0.00022865,7]
[371569105,1752357070558,-1155.207518,0.00022865,7]
[371569106,1752357070567,-1155.207518,0.00022865,7]
[371569107,1752357070577,-151.0,0.00022865,7]
[371569108,1752357070586,-500.0,0.00022876,8]
[371569109,1752357070595,-1000.0,0.0002288,5]
[371569110,1752357070604,-221.648769,0.00022892,7]
[371569111,1752357070614,-26544.45391735,0.00022893,2]
[371569112,1752357070623,-189.78124,0.000229,7]
[371569113,1752357070633,-189.78124,0.000229,7]
[371569114,1752357070642,-1000.0,0.000229,5]
[371569115,1752357070651,-151.0,0.000229,7]
[371569116,1752357070661,-158.938451,0.000229,7]
[371569117,1752357070671,-158.938451,0.000229,7]
[371569118,1752357070681,-1074.333574,0.000229,7]
[371569119,1752357070690,-1074.333574,0.000229,7]
[371569120,1752357070700,-1000.0,0.000229,2]
[371569121,1752357070709,-800.0,0.00022906,2]
[371569122,1752357070718,-293.90041972,0.00022999,2]
[371569123,1752357070728,-155.83,0.00023,7]
[371569124,1752357070737,-500.0,0.00023,3]
[371569125,1752357070747,-500.0,0.00023,3]
[371569126,1752357070756,-500.0,0.00023,3]
[371569127,1752357070765,-2153.44,0.00023,2]
[371569128,1752357070774,-9810.06450645,0.00023,2]
[371569129,1752357070784,-313.03,0.00023,5]
[371569130,1752357070793,-160.0,0.00023,3]
[371569131,1752357070803,-230.64269914,0.00023,3]
[371569132,1752357070813,-12584.72264715,0.00023,3]
[371569133,1752357070822,-151.0,0.00023,7]
[371569134,1752357070832,-151.0,0.00023,7]
[371569135,1752357070841,-172.08,0.00023,7]
[371569136,1752357070851,-151.0,0.00023,7]
[371569137,1752357070862,-151.0,0.00023,7]
[371569138,1752357070872,-151.0,0.00023,7]
[371569139,1752357070882,-151.0,0.00023,7]
[371569140,1752357070891,-151.0,0.00023,7]
[371569141,1752357070901,-176.885615,0.00023,7]
[371569142,1752357070911,-208.720933,0.00023,7]
[371569143,1752357070921,-208.720933,0.00023,7]
[371569144,1752357070930,-151.0,0.00023,7]
[371569145,1752357070940,-151.0,0.00023,7]
[371569146,1752357070949,-151.0,0.00023,7]
[371569147,1752357070958,-151.0,0.00023,7]
[371569148,1752357070968,-300.586308,0.00023,2]
[371569149,1752357070977,-300.586308,0.00023,2]
[371569150,1752357070986,-151.0,0.00023,7]
[371569151,1752357070995,-158.256486,0.00023,7]
[371569152,1752357071005,-151.0,0.00023,7]
[371569153,1752357071014,-151.0,0.00023,7]
[371569154,1752357071023,-264.189425,0.00023,7]
[371569155,1752357071033,-264.189425,0.00023,7]
[371569156,1752357071042,-151.0,0.00023,7]
[371569157,1752357071052,-151.0,0.00023,7]
[371569158,1752357071061,-151.0,0.00023,7]
[371569159,1752357071072,-4705.72,0.00023,7]
[371569160,1752357071081,-842.53,0.00023,7]
[371569161,1752357071090,-160.0,0.00023,3]
[371569162,1752357071099,-368.105322,0.00023,7]
[371569163,1752357071109,-368.105324,0.00023,7]
[371569164,1752357071118,-214.25614385,0.00023,7]
[371569165,1752357071128,-34784.13,0.00023,2]
[371569166,1752357071138,-215.38668925,0.00023,3]
[371569167,1752357071147,-160.0,0.00023,3]
[371569168,1752357071157,-525.30943792,0.00023,3]
[371569169,1752357071167,-525.30943792,0.00023,7]
[371569170,1752357071177,-160.0,0.00023,3]
[371569171,1752357071186,-838.37930271,0.00023,3]
[371569172,1752357071196,-233.0,0.00023014,8]
[371569173,1752357071206,-450.0,0.00023014,2]
[371569174,1752357071220,-350.0,0.00023014,2]
[371569175,1752357071229,-221.648769,0.00023014,8]
[371569176,1752357071238,-5502.71686863,0.00023026,2]
[371569177,1752357071247,-221.648769,0.00023062,8]
[371569178,1752357071258,-231.28369723,0.00023065,2]
[371569179,1752357071268,-1033.0,0.00023079,2]
[371569180,1752357071278,-2000.0,0.000231,2]
[371569181,1752357071289,-151.0,0.000231,7]
[371569182,1752357071299,-1262.657327,0.000231,7]
[371569183,1752357071309,-1262.657327,0.000231,7]
[371569184,1752357071319,-479.491969,0.000231,7]
[371569185,1752357071329,-479.491969,0.000231,7]
[371569186,1752357071338,-3924.06288853,0.00023107,8]
[371569187,1752357071347,-221.648769,0.00023109,8]
[371569188,1752357071357,-151.0,0.00023124,7]
[371569189,1752357071366,-151.0,0.00023124,7]
[371569190,1752357071376,-151.0,0.00023124,7]
[371569191,1752357071465,-151.0,0.00023124,7]
[371569192,1752357071475,-151.0,0.00023124,7]
[371569193,1752357071484,-151.0,0.00023124,7]
[371569194,1752357071493,-1155.207518,0.00023124,7]
[371569195,1752357071503,-1155.207518,0.00023124,7]
[371569196,1752357071512,-151.0,0.00023124,7]
[371569197,1752357071521,-151.0,0.00023141,7]
[371569198,1752357071531,-168.0,0.00023156,2]
[371569199,1752357071540,-221.648769,0.00023157,8]
[371569200,1752357071549,-221.648769,0.00023204,8]
[371569201,1752357071559,-857.4953208,0.00023205,2]
[371569202,1752357071568,-151.0,0.00023249,6]
[371569203,1752357071577,-221.648769,0.00023251,10]
[371569204,1752357071586,-168.0,0.00023261,2]
[371569205,1752357071596,-221.648769,0.00023293,7]
[371569206,1752357071605,-1246.14165068,0.000233,7]
[371569207,1752357071614,-199.66823,0.0002333,3]
[371569208,1752357071623,-221.648769,0.0002333,3]
[371569209,1752357071633,-621.38444872,0.00023333,3]
[371569210,1752357071643,-151.0,0.0002338,7]
[371569211,1752357071653,-4559.0,0.00023393,2]
[371569212,1752357071663,-1033.0,0.00023397,2]
[371569213,1752357071674,-500.40604871,0.000234,2]
[371569214,1752357071685,-3924.06288853,0.00023417,9]
[371569215,1752357071694,-221.648769,0.00023426,2]
[371569216,1752357071704,-1096.0,0.000235,7]
[371569217,1752357071715,-5502.71686863,0.00023542,2]
[371569218,1752357071724,-5000.0,0.00023547,3]
[371569219,1752357071733,-600.0,0.00023562,2]
[371569220,1752357071743,-578.55719364,0.00023562,2]
[371569221,1752357071753,-160.0,0.000236,3]
[371569222,1752357071762,-221.648769,0.00023662,10]
[371569223,1752357071771,-221.648769,0.00023694,7]
[371569224,1752357071781,-151.0,0.000237,6]
[371569225,1752357071790,-3924.06288853,0.00023728,9]
[371569226,1752357071800,-2154.0,0.00023783,2]
[371569227,1752357071810,-189.78124,0.000238,7]
[371569228,1752357071819,-189.78124,0.000238,7]
[371569229,1752357071829,-160.0,0.00024,7]
[371569230,1752357071839,-230.64269914,0.00024,7]
[371569231,1752357071848,-40321.41,0.00024,7]
[371569232,1752357071858,-151.0,0.00024,7]
[371569233,1752357071867,-151.0,0.00024,7]
[371569234,1752357071877,-180.07593,0.00024,7]
[371569235,1752357071887,-151.0,0.00024,7]
[371569236,1752357071896,-151.0,0.00024,7]
[371569237,1752357071906,-151.0,0.00024,7]
[371569238,1752357071916,-208.720933,0.00024,7]
[371569239,1752357071926,-208.720938,0.00024,7]
[371569240,1752357071935,-151.0,0.00024,7]
[371569241,1752357071944,-151.0,0.00024,7]
[371569242,1752357071954,-151.0,0.00024,7]
[371569243,1752357071963,-151.0,0.00024,7]
[371569244,1752357071973,-300.586308,0.00024,2]
[371569245,1752357071982,-300.586308,0.00024,2]
[371569246,1752357071992,-151.0,0.00024,7]
[371569247,1752357072001,-151.0,0.00024,7]
[371569248,1752357072010,-158.938451,0.00024,7]
[371569249,1752357072020,-158.938443,0.00024,7]
[371569250,1752357072030,-1074.333574,0.00024,7]
[371569251,1752357072039,-1074.333576,0.00024,7]
[371569252,1752357072049,-215.38668925,0.00024,7]
[371569253,1752357072059,-525.30943792,0.00024,7]
[371569254,1752357072069,-160.0,0.00024,7]
[371569255,1752357072079,-838.37930271,0.00024,7]
[371569256,1752357072090,-3924.06288853,0.00024038,10]
[371569257,1752357072100,-5502.71686863,0.00024057,2]
[371569258,1752357072109,-221.648769,0.00024072,10]
[371569259,1752357072119,-221.648769,0.00024096,7]
[371569260,1752357072128,-2000.0,0.000241,2]
[371569261,1752357072139,-750.0,0.0002411,2]
[371569262,1752357072148,-151.0,0.00024151,7]
[371569263,1752357072158,-4705.72,0.000242,7]
[371569264,1752357072167,-842.53,0.000242,7]
[371569265,1752357072176,-34784.13,0.000242,2]
[371569266,1752357072185,-151.0,0.00024245,7]
[371569267,1752357072195,-151.0,0.00024245,7]
[371569268,1752357072204,-264.189425,0.00024245,7]
[371569269,1752357072217,-264.189425,0.00024245,7]
[371569270,1752357072227,-151.0,0.00024245,7]
[371569271,1752357072237,-3924.06288853,0.00024348,11]
[371569272,1752357072247,-239.84119403,0.00024434,2]
[371569273,1752357072257,-2000.0,0.000245,2]
[371569274,1752357072267,-2000.0,0.000245,2]
[371569275,1752357072277,-165.47,0.000245,31]
[371569276,1752357072287,-165.47,0.000245,31]
[371569277,1752357072298,-165.47,0.000245,31]
[371569278,1752357072307,-165.47,0.000245,31]
[371569279,1752357072317,-165.47,0.000245,31]
[371569280,1752357072327,-165.47,0.000245,31]
[371569281,1752357072336,-165.47,0.000245,31]
[371569282,1752357072346,-165.47,0.000245,31]
[371569283,1752357072355,-165.47,0.000245,31]
[371569284,1752357072365,-165.47,0.000245,31]
[371569285,1752357072375,-165.47,0.000245,31]
[371569286,1752357072384,-165.47,0.000245,31]
[371569287,1752357072394,-165.47,0.000245,31]
[371569288,1752357072403,-165.47,0.000245,31]
[371569289,1752357072412,-165.47,0.000245,31]
[371569290,1752357072423,-165.47,0.000245,31]
[371569291,1752357072433,-153.0,0.00024548,2]
[371569292,1752357072442,-153.0,0.00024548,2]
[371569293,1752357072452,-153.0,0.00024548,2]
[371569294,1752357072461,-153.0,0.00024548,2]
[371569295,1752357072472,-153.0,0.00024548,2]
[371569296,1752357072482,-153.0,0.00024548,2]
[371569297,1752357072492,-5502.71686863,0.00024573,2]
[371569298,1752357072501,-2000.0,0.000246,2]
[371569299,1752357072510,-160649.56253431,0.0002465,2]
[371569300,1752357072520,-501.28905442,0.0002465,2]
[371569301,1752357072529,-33589.28842535,0.0002465,7]
[371569302,1752357072539,-245419.38700787,0.0002465,2]
[371569303,1752357072549,-10307.20379395,0.0002465,2]
[371569304,1752357072558,-151.0,0.0002465,7]
[371569305,1752357072568,-287.096907,0.0002465,7]
[371569306,1752357072577,-151.0,0.0002465,7]
[371569307,1752357072586,-154.041585,0.0002465,7]
[371569308,1752357072596,-151.0,0.0002465,7]
[371569309,1752357072605,-151.0,0.0002465,7]
[371569310,1752357072614,-151.0,0.0002465,7]
[371569311,1752357072624,-151.0,0.0002465,7]
[371569312,1752357072633,-151.0,0.0002465,7]
[371569313,1752357072643,-151.0,0.0002465,7]
[371569314,1752357072652,-151.0,0.0002465,7]
[371569315,1752357072662,-151.0,0.0002465,7]
[371569316,1752357072671,-300.586308,0.0002465,2]
[371569317,1752357072681,-300.586308,0.0002465,2]
[371569318,1752357072691,-300.586308,0.0002465,2]
[371569319,1752357072700,-300.586308,0.0002465,2]
[371569320,1752357072710,-189.78124,0.0002465,7]
[371569321,1752357072720,-189.78124,0.0002465,7]
[371569322,1752357072729,-151.0,0.0002465,7]
[371569323,1752357072739,-151.0,0.0002465,7]
[371569324,1752357072748,-189.78124,0.0002465,7]
[371569325,1752357072758,-189.78124,0.0002465,7]
[371569326,1752357072767,-151.0,0.0002465,7]
[371569327,1752357072776,-151.0,0.0002465,7]
[371569328,1752357072785,-151.0,0.0002465,7]
[371569329,1752357072795,-151.0,0.0002465,7]
[371569330,1752357072804,-151.0,0.0002465,7]
[371569331,1752357072813,-151.0,0.0002465,7]
[371569332,1752357072823,-219.420781,0.0002465,7]
[371569333,1752357072832,-151.0,0.0002465,7]
[371569334,1752357072842,-183.575229,0.0002465,7]
[371569335,1752357072852,-151.0,0.0002465,7]
[371569336,1752357072937,-151.0,0.0002465,7]
[371569337,1752357072947,-151.0,0.0002465,7]
[371569338,1752357072956,-151.0,0.0002465,7]
[371569339,1752357072966,-151.0,0.0002465,7]
[371569340,1752357072976,-151.0,0.0002465,7]
[371569341,1752357072985,-1155.207518,0.0002465,7]
[371569342,1752357072994,-1155.207518,0.0002465,7]
[371569343,1752357073003,-1155.207518,0.0002465,7]
[371569344,1752357073013,-1155.207518,0.0002465,7]
[371569345,1752357073022,-264.189425,0.0002465,7]
[371569346,1752357073031,-264.189425,0.0002465,7]
[371569347,1752357073041,-264.189425,0.0002465,7]
[371569348,1752357073051,-264.189418,0.0002465,7]
[371569349,1752357073060,-202.335106,0.0002465,7]
[371569350,1752357073069,-151.0,0.0002465,7]
[371569351,1752357073080,-151.0,0.0002465,7]
[371569352,1752357073089,-151.0,0.0002465,7]
[371569353,1752357073098,-151.0,0.0002465,7]
[371569354,1752357073108,-1262.657327,0.0002465,7]
[371569355,1752357073117,-1262.657327,0.0002465,7]
[371569356,1752357073127,-1262.657327,0.0002465,7]
[371569357,1752357073136,-1262.657329,0.0002465,7]
[371569358,1752357073146,-479.491969,0.0002465,7]
[371569359,1752357073155,-479.491969,0.0002465,7]
[371569360,1752357073165,-479.491969,0.0002465,7]
[371569361,1752357073175,-479.491971,0.0002465,7]
[371569362,1752357073184,-10287.15601116,0.00024658,2]
[371569363,1752357073195,-900.0,0.00024658,2]
[371569364,1752357073204,-380.0,0.00024658,2]
[371569365,1752357073217,-200.0,0.00024658,15]
[371569366,1752357073227,-163.69944047,0.00024658,2]
[371569367,1752357073236,-200.0,0.00024658,2]
[371569368,1752357073246,-746.0,0.00024658,2]
[371569369,1752357073255,-3924.06288853,0.00024659,11]
[371569370,1752357073265,-746.0,0.00024685,2]
[371569371,1752357073275,-746.0,0.00024713,2]
[371569372,1752357073284,-746.0,0.0002474,2]
[371569373,1752357073295,-1307.00636478,0.00024744,2]
[371569374,1752357073305,-221.648769,0.0002475,2]
[371569375,1752357073315,-746.0,0.00024768,2]
[371569376,1752357073324,-12921.0372519,0.00024774,2]
[371569377,1752357073333,-746.0,0.00024795,2]
[371569378,1752357073343,-210.0,0.000248,8]
[371569379,1752357073352,-151.0,0.000248,7]
[371569380,1752357073362,-300.586308,0.000248,2]
[371569381,1752357073372,-300.586308,0.000248,2]
[371569382,1752357073381,-189.78124,0.000248,7]
[371569383,1752357073391,-189.78124,0.000248,7]
[371569384,1752357073401,-253.94832,0.000248,7]
[371569385,1752357073411,-151.0,0.000248,7]
[371569386,1752357073420,-151.0,0.000248,7]
[371569387,1752357073430,-151.0,0.000248,7]
[371569388,1752357073439,-1155.207518,0.000248,7]
[371569389,1752357073449,-1155.207518,0.000248,7]
[371569390,1752357073459,-4270.96376031,0.00024809,5]
[371569391,1752357073468,-746.0,0.00024822,2]
[371569392,1752357073478,-1307.00636478,0.00024844,2]
[371569393,1752357073498,-1798.09,0.00024845,4]
[371569394,1752357073508,-746.0,0.0002485,2]
[371569395,1752357073519,-270.62,0.0002485,30]
[371569396,1752357073528,-746.0,0.00024877,2]
[371569397,1752357073538,-151.0,0.000249,7]
[371569398,1752357073548,-151.0,0.000249,7]
[371569399,1752357073558,-151.0,0.000249,7]
[371569400,1752357073569,-300.586308,0.000249,2]
[371569401,1752357073578,-300.586308,0.000249,2]
[371569402,1752357073588,-189.78124,0.000249,7]
[371569403,1752357073598,-189.78124,0.000249,7]
[371569404,1752357073608,-151.0,0.000249,7]
[371569405,1752357073618,-151.0,0.000249,7]
[371569406,1752357073627,-151.0,0.000249,7]
[371569407,1752357073637,-1155.207518,0.000249,7]
[371569408,1752357073647,-1155.207518,0.000249,7]
[371569409,1752357073657,-545390.97087091,0.000249,2]
[371569410,1752357073822,-257.71,0.00020273,2]
[371569411,1752357073834,-787.27,0.00020273,2]
[371569412,1752357073844,-1846.78,0.00021917,2]
[371569413,1752357073854,-29043.59015211,0.000249,2]
[371569414,1752357073877,-550.24,0.00016986,2]
[371569415,1752357073888,-460.0,0.00019726,2]
[371569416,1752357073901,-15570.8425004,0.000249,2]
[371569417,1752357074346,-460.0,0.00016438,2]
[371569418,1752357074355,-460.0,0.00016438,2]
[371569419,1752357074365,-460.0,0.00016712,2]
[371569420,1752357074375,-460.0,0.00016712,2]
[371569421,1752357074384,-3763.96887458,0.00016712,2]
[371569422,1752357074395,-679.17,0.00016712,2]
[371569423,1752357074407,-2190.03482981,0.00016712,2]
[371569424,1752357074418,-761.60007,0.00016712,2]
[371569425,1752357075462,176.47,0.00022939,30]
[371569426,1752357253199,166.72,0.00022879,30]
[371569427,1752357345465,163.08,0.00022923,30]
[371569428,1752357504429,424.2983273,0.00015506,2]
[371569429,1752357648193,159.52,0.0002229,30]
[371569430,1752357679312,2072.1513846,0.00015413,2]
[371569431,1752357697555,646.0214703,0.00015413,2]
[371569432,1752357728902,156.04,0.00021389,30]
[371569433,1752357729803,195.05,0.0002228,30]
[371569435,1752357753701,167.758624,0.00013699,2]
[371569436,1752357887086,1642.4914509,0.00015504,2]
[371569460,1752358135719,208.273142,0.00015411,2]
[371569515,1752358232537,-284.91981695,0.00016324,2]